Cogmind - Beta 17 --- EXPLORER MODE // 2026.06.26 @ 22:05:46 Player: NeoBioHazard Result: Escaped! Performance ------------- Evolutions (9) 4500 Regions Visited (10) 2000 Robots Destroyed (78) 390 Value Destroyed (1762) 1762 Prototype IDs (9) 180 Alien Tech Used (0) 0 Bonus (3767) 3767 TOTAL SCORE: 12599 Bonus ------- Win 3000 Win Speed 767 Cogmind --------- Core Integrity 1528/1600 Matter 297/300 Energy 211/575 System Corruption 1% Temperature Warm (109) Movement Flying (23) Location To Epsilon Eridani Parts ------- > --- POWER (2) -------- Antimatter Reactor Quantum Reactor > --- PROPULSION (10) -- Impulse Thruster Impulse Thruster Impulse Thruster Q-thruster Q-thruster Impulse Thruster Array Impulse Thruster Array > --- UTILITY (12) ----- Improved Cooling System Advanced Visual Processing Unit Advanced Visual Processing Unit Advanced Sensor Array Advanced Signal Interpreter Improved Terrain Scanner Advanced Terrain Scan Processor Advanced Terrain Scan Processor Advanced Terrain Scan Processor Armor Integrity Analyzer Force Booster Advanced Cloaking Device > --- WEAPON (2) ------- Power Maul Lance > --- INVENTORY (5) ---- Micro Antimatter Reactor Field Propulsion Array Plasma Cutter Dual-blade Saw Peak State ------------ > --- POWER ------------ Antimatter Reactor Quantum Reactor > --- PROPULSION ------- Impulse Thruster Impulse Thruster Impulse Thruster Impulse Thruster Q-thruster Q-thruster Impulse Thruster Array Impulse Thruster Array > --- UTILITY ---------- Improved Cooling System Advanced Visual Processing Unit Advanced Visual Processing Unit Advanced Sensor Array Advanced Signal Interpreter Improved Terrain Scanner Advanced Terrain Scan Processor Advanced Terrain Scan Processor Advanced Terrain Scan Processor Armor Integrity Analyzer Force Booster Advanced Cloaking Device > --- WEAPON ----------- Power Maul Lance > --- INVENTORY -------- Micro Antimatter Reactor Field Propulsion Array Plasma Cutter Dual-blade Saw [Rating: 157] Favorites ----------- Power Nuclear Core Engine Light Ion Engine Power Core Nuclear Core Reactor Antimatter Reactor Propulsion VTOL Module Leg Aluminum Leg Flight Unit VTOL Module Utility Improved Terrain Scanner Device Improved Terrain Scanner Storage Medium Storage Unit Processor Advanced Terrain Scan Processor Weapon Small Laser Energy Gun Small Laser Ballistic Gun Assault Rifle Launcher Mini Grenade Launcher Special Weapon Plasma Cutter Impact Weapon Power Maul Slashing Weapon Dual-blade Saw Piercing Weapon Lance Build | -11 -10 -9 -8 -7 -6 -5 -4 -3 -2 -1 ------- Run | Yrd Mat Mat Mat Fac Fac Fac Fac Res Res Acc Slots Evolved 19 | . 1 2 2 2 2 2 2 2 2 2 Power 1 | . . . . 1 . . . . . . Propulsion 8 | . . 2 . 1 1 . . 2 . 2 Utility 10 | . 1 . 2 . 1 2 2 . 2 . Weapon . | . . . . . . . . . . . Parts Attached 84 | 9 2 19 8 8 4 7 9 5 3 10 Power 10 | 1 . 2 . 2 . 2 2 . 1 . Engine 3 | 1 . 1 . . . 1 . . . . Core 5 | . . 1 . 2 . 1 1 . . . Reactor 2 | . . . . . . . 1 . 1 . Propulsion 33 | 2 . 10 4 1 3 . 5 4 . 4 Treads . | . . . . . . . . . . . Leg 12 | 2 . 10 . . . . . . . . Wheel . | . . . . . . . . . . . Hover . | . . . . . . . . . . . Flight 21 | . . . 4 1 3 . 5 4 . 4 Utility 23 | 3 2 . 2 2 1 4 2 1 1 5 Device 11 | 2 1 . 1 . . 2 2 . 1 2 Storage 2 | 1 1 . . . . . . . . . Processor 10 | . . . 1 2 1 2 . 1 . 3 Hackware . | . . . . . . . . . . . Protection . | . . . . . . . . . . . Artifact . | . . . . . . . . . . . Weapon 18 | 3 . 7 2 3 . 1 . . 1 1 Energy Gun 7 | 2 . 5 . . . . . . . . Energy Cannon . | . . . . . . . . . . . Ballistic Gun 1 | 1 . . . . . . . . . . Ballistic Cannon . | . . . . . . . . . . . Launcher 1 | . . 1 . . . . . . . . Special Weapon 1 | . . . . . . . . . . 1 Impact Weapon 4 | . . 1 2 1 . . . . . . Slashing Weapon 3 | . . . . 2 . . . . 1 . Piercing Weapon 1 | . . . . . . 1 . . . . Special Melee Weapon . | . . . . . . . . . . . Unidentified Prototypes 3 | . . 2 . . . . . . . 1 Parts Lost 5 | . . . . . . 4 . . . 1 Power 1 | . . . . . . 1 . . . . Propulsion 2 | . . . . . . 1 . . . 1 Utility 2 | . . . . . . 2 . . . . Weapon . | . . . . . . . . . . . Highest Loss Streak 4 | . . . . . . 4 . . . 1 To Critical Strikes . | . . . . . . . . . . . Average Backups 5 | 2 7 9 5 4 4 4 4 5 4 4 Power . | . 1 1 1 . . . 1 1 1 1 Propulsion 1 | . 2 4 1 . . . . 1 1 1 Utility 1 | . 2 1 . 1 2 2 1 1 . . Weapon 1 | . 1 2 1 1 . . 1 1 1 1 Tool/Special . | . . . . . . . . . . . Unused Backups 10 | . 3 3 . . 1 . 1 . . 2 Power 3 | . . 1 . . . . 1 . . 1 Propulsion 4 | . 3 . . . . . . . . 1 Utility 3 | . . 2 . . 1 . . . . . Weapon . | . . . . . . . . . . . Tool/Special . | . . . . . . . . . . . Average Slot Usage (%) 95 | . 97 98 89 97 99 92 95 94 91 90 Engine 3 | . 12 6 . . . . . . . . Core 5 | . . 3 8 13 12 10 8 4 3 . Reactor 1 | . . . . . . . 1 4 4 7 Leg 12 | . 24 39 8 . . . . . . . Flight 19 | . . . 24 34 36 32 30 30 29 29 Device 20 | . 22 19 22 21 18 20 20 22 25 21 Storage 4 | . 12 10 2 . . . . . . . Processor 11 | . . . 6 13 18 16 25 22 20 23 Energy Gun 8 | . 24 19 6 . . . . . . . Impact Weapon 3 | . . . 10 12 6 5 5 4 4 3 Piercing Weapon 1 | . . . . . . 4 5 4 . 2 Peak Build Rating 157 | 9 11 27 27 40 52 67 97 117 125 157 Average Rating 56 | 7 9 19 23 34 50 57 81 114 121 150 On Entrance 51 | . 9 11 27 24 40 52 67 97 117 125 Avg Prop Armor Cover (%) 2 | . . . . . 3 3 . 2 . . Naked Turns . | . . . . . . . . . . . Heaviest Build 54 | 16 18 26 25 22 23 24 33 33 54 54 Greatest Support 76 | 20 20 68 68 22 28 30 39 49 57 76 Greatest Overweight (x) 4 | . 4 . . . . . . . . . Average Overweight (x) . | . . . . . . . . . . . Largest Inventory Capacity 10 | 10 10 10 10 5 5 5 5 5 5 5 Average Capacity 7 | 9 10 10 6 5 5 5 5 5 5 5 Most Carried 10 | 4 9 10 10 5 5 5 5 5 5 5 Average Carried 6 | 2 7 9 4 4 4 4 4 5 4 4 Final Capacity 10 | 10 10 10 5 5 5 5 5 5 5 5 Final Carried 10 | 4 9 10 4 5 5 5 5 5 5 5 Class Distribution -------------------- 41% | Hacker-Mutant 29% | Hacker-Ninja 28% | Hacker-Scout Dominant Class ---------------- Hacker-Mutant | -10/Materials Hacker-Mutant | -9/Materials Hacker-Scout | -8/Materials Hacker-Scout | -7/Factory Hacker-Scout | -6/Factory Hacker-Scout | -5/Factory Hacker-Ninja | -4/Factory Hacker-Ninja | -3/Research Hacker-Ninja | -2/Research Hacker-Ninja | -1/Access Resources | -11 -10 -9 -8 -7 -6 -5 -4 -3 -2 -1 ----------- Run | Yrd Mat Mat Mat Fac Fac Fac Fac Res Res Acc Matter Collected 1208 | 290 88 230 80 70 60 60 124 36 50 120 Remotely . | . . . . . . . . . . . Salvage Created 2592 | 229 307 1346 8 235 21 97 86 . . 263 Parts 121 | 16 18 62 1 8 1 3 5 . . 7 Haulers Intercepted 10 | . 2 5 . 2 . . . . . 1 Recyclers Shooed 2 | 1 . 1 . . . . . . . . Parts Field Recycled . | . . . . . . . . . . . Retrieved Matter . | . . . . . . . . . . . Parts Self-Destructed . | . . . . . . . . . . . Prevented . | . . . . . . . . . . . Parts Restored . | . . . . . . . . . . . Kills | -11 -10 -9 -8 -7 -6 -5 -4 -3 -2 -1 ------- Run | Yrd Mat Mat Mat Fac Fac Fac Fac Res Res Acc Combat Hostiles Destroyed 38 | . 7 19 . 2 . 4 2 . . 4 Melee 9 | . . . . 1 . 3 2 . . 3 Guns 26 | . 7 19 . . . . . . . . Classes Destroyed 11 | 3 4 3 . 1 . . . . . . Worker 6 | 2 . 4 . . . . . . . . Tunneler 7 | 6 . . . 1 . . . . . . Hauler 10 | . 2 5 . 2 . . . . . 1 Recycler 2 | 1 . 1 . . . . . . . . Operator 5 | . . 1 1 2 1 . . . . . Watcher 10 | . 3 4 . . . . 1 . . 2 Swarmer 17 | . 6 2 . . . 4 2 . . 3 Grunt 12 | . 1 11 . . . . . . . . Brawler 1 | . . 1 . . . . . . . . Sentry 6 | . . 5 . 1 . . . . . . Programmer 2 | . . . . 1 . . . . . 1 Best Kill Streak 8 | 3 2 8 1 3 1 4 2 . . 4 Combat Bots Only 4 | . 2 3 . 2 . 4 2 . . 3 Max Kills in Single Turn 2 | 1 1 2 1 1 1 1 1 . . 1 Gunslinging 1 | . . 1 . . . . . . . . Exploded . | . . . . . . . . . . . Melee 1 | . . . . 1 . 1 1 . . 1 Uniques/NPCs Destroyed . | . . . . . . . . . . . Combat | -11 -10 -9 -8 -7 -6 -5 -4 -3 -2 -1 -------- Run | Yrd Mat Mat Mat Fac Fac Fac Fac Res Res Acc Hostile Shots Fired 338 | . 27 78 . 62 9 36 9 6 . 111 Missed 142 | . 7 27 . 32 5 15 5 2 . 49 Hits 196 | . 20 51 . 30 4 21 4 4 . 62 Projectile 196 | . 20 51 . 30 4 21 4 4 . 62 AOE 1 | . . . . . . . . . . 1 Critical Strikes 4 | . . . . . . . . 1 . 3 Damage Taken 1691 | . 111 385 . 156 19 330 71 54 . 565 Core 292 | . 28 55 . 35 3 82 . 17 . 72 Absorbed by Shields . | . . . . . . . . . . . Ignored by Resistances 1052 | . 81 248 . 109 13 195 41 33 . 332 Regen/Repaired (Parts) 79 | . 2 48 . . . 29 . . . . Core Remaining (%) 95 | 100 88 86 100 95 99 91 100 98 100 95 Volleys Fired 136 | 16 27 93 . . . . . . . . Largest 2 | 2 2 2 . . . . . . . . Hottest 112 | 80 80 112 . . . . . . . . Shots Fired 271 | 32 54 185 . . . . . . . . Gun 270 | 32 54 184 . . . . . . . . Cannon . | . . . . . . . . . . . Launcher 1 | . . 1 . . . . . . . . Special . | . . . . . . . . . . . Kinetic . | . . . . . . . . . . . Thermal 270 | 32 54 184 . . . . . . . . Explosive 1 | . . 1 . . . . . . . . Electromagnetic . | . . . . . . . . . . . Robot Hit Streak 37 | 14 20 37 . . . . . . . . Robot Miss Streak 3 | 2 1 3 . . . . . . . . Penetration Max . | . . . . . . . . . . . Secondary Targets 4 | . . 4 . . . . . . . . Max Gunslinging Chain 1 | . . 1 . . . . . . . . Shots Hit Robots 272 | 26 42 155 1 12 1 7 6 . . 22 Core Hits 93 | 10 16 55 . 2 1 1 3 . . 5 Critical Kills . | . . . . . . . . . . . Critical Parts Destroyed 12 | . . . . 4 . 1 2 . . 5 Critical Strikes 23 | . . 9 . 5 . 1 2 . . 6 Burn 9 | . . 9 . . . . . . . . Smash 13 | . . . . 5 . 1 2 . . 5 Impale 1 | . . . . . . . . . . 1 Melee Attacks 140 | . . 1 1 24 4 24 14 7 3 62 Impact 91 | . . 1 1 22 1 11 10 1 1 43 Slashing 9 | . . . . 2 3 . . . 2 2 Piercing 40 | . . . . . . 13 4 6 . 17 Sneak Attacks 8 | . . . . 4 . . 2 . . 2 Combat Hostiles . | . . . . . . . . . . . Follow-up Attacks 5 | . . . . . . 1 3 . . 1 Damage Inflicted 5660 | 286 503 2117 34 709 63 352 346 . . 1250 Guns 2897 | 286 503 2108 . . . . . . . . Cannons . | . . . . . . . . . . . Explosions 9 | . . 9 . . . . . . . . Melee 2754 | . . . 34 709 63 352 346 . . 1250 Ramming . | . . . . . . . . . . . Kinetic . | . . . . . . . . . . . Thermal 2897 | 286 503 2108 . . . . . . . . Explosive 9 | . . 9 . . . . . . . . Electromagnetic . | . . . . . . . . . . . Impact 2039 | . . . 34 709 . 192 167 . . 937 Slashing 95 | . . . . . 63 . . . . 32 Piercing 620 | . . . . . . 160 179 . . 281 Highest Corruption 2 | . 2 . . . . . . . . 1 Average Corruption 1 | . 1 . . . . . . . . 1 Corruption Purged . | . . . . . . . . . . . Corruption Blocked . | . . . . . . . . . . . Effects 5 | . 2 . . . . . . . . 3 Message Errors 1 | . . . . . . . . . . 1 Matter Fused 2 | . 1 . . . . . . . . 1 Energy Discharges 1 | . 1 . . . . . . . . . Alerts 1 | . . . . . . . . . . 1 Overload Shots . | . . . . . . . . . . . Overflow Damage 1120 | . . . 24 339 . 167 123 . . 467 Projectiles . | . . . . . . . . . . . Explosions . | . . . . . . . . . . . Melee 1120 | . . . 24 339 . 167 123 . . 467 Knockbacks 5 | . . . . 1 . . . . . 4 Impact 5 | . . . . 1 . . . . . 4 Kinetic . | . . . . . . . . . . . Secondary . | . . . . . . . . . . . Self-Inflicted Damage . | . . . . . . . . . . . Shots . | . . . . . . . . . . . Rammed . | . . . . . . . . . . . Targets Rammed . | . . . . . . . . . . . Kicked . | . . . . . . . . . . . Crushed . | . . . . . . . . . . . Highest Temperature 240 | 90 96 240 . 74 63 7 . 20 . 102 Average Temperature 42 | 35 33 68 . 18 16 2 . 10 . 21 Received Heat Transfer 504 | . 24 267 . 54 12 57 9 60 . 21 Effects 2 | . . 2 . . . . . . . . Interference 2 | . . 2 . . . . . . . . Siege Activations . | . . . . . . . . . . . Martial Activations . | . . . . . . . . . . . Shielding Activations . | . . . . . . . . . . . Robots Disrupted . | . . . . . . . . . . . Combat Hostiles . | . . . . . . . . . . . Robots Corrupted 6 | . . . . 4 . 1 . . . 1 Combat Hostiles 3 | . . . . 1 . 1 . . . 1 Parts Fried 11 | . . . . 9 . 2 . . . . Impact Corruptions 39 | . . . 1 13 . 6 3 . . 16 Robots Melted . | . . . . . . . . . . . Combat Hostiles . | . . . . . . . . . . . Parts Melted 18 | 1 3 14 . . . . . . . . Heat Transferred 7071 | 650 1050 5371 . . . . . . . . Parts Sabotaged . | . . . . . . . . . . . Parts Stolen . | . . . . . . . . . . . Parts Stripped . | . . . . . . . . . . . Power Chain Reactions . | . . . . . . . . . . . Alert | -11 -10 -9 -8 -7 -6 -5 -4 -3 -2 -1 ------- Run | Yrd Mat Mat Mat Fac Fac Fac Fac Res Res Acc Maximum Alert Level . | . . . . . . . . . . . Low Security (%) 100 | 100 100 100 100 100 100 100 100 100 100 100 Level 1 . | . . . . . . . . . . . Level 2 . | . . . . . . . . . . . Level 3 . | . . . . . . . . . . . Level 4 . | . . . . . . . . . . . Level 5 . | . . . . . . . . . . . High Security . | . . . . . . . . . . . Max Security . | . . . . . . . . . . . Peak Influence 122 | 15 50 101 5 65 27 77 65 32 13 122 Initial 27 | . . . . 1 1 1 27 . 13 . Average 12 | 1 8 24 . 10 10 5 11 2 3 21 Influence Increases 1889 | 45 236 630 7 191 74 212 129 58 3 304 Destroy 0b10 Robot/C 760 | . 140 380 . 40 . 80 40 . . 80 Destroy 0b10 Robot/NC 200 | 45 25 75 5 25 5 . 5 . . 15 Destroy Leader 220 | . 40 118 . 24 . 10 12 . . 16 Successful Hack 173 | . 16 20 2 31 36 8 . 18 . 42 Disable Machine 28 | . . 8 . 4 . . . . . 16 Destroy Structure 133 | . . 14 . 7 3 24 12 10 3 60 Partial Spotted 75 | . . . . 45 15 . . . . 15 Lose Combat Pursuer 300 | . 15 15 . 15 15 90 60 30 . 60 Influence Decreases 1860 | 45 236 630 2 191 73 141 206 26 35 275 Entered New Map 82 | . . . . 4 4 5 50 . 19 . Time Decay 1680 | 45 236 584 . 187 69 96 156 26 16 265 Lost Part 50 | . . . . . . 40 . . . 10 Purge Threat 48 | . . 46 2 . . . . . . . Squads Dispatched 14 | . . 2 . 2 . 3 1 1 . 5 Investigation 3 | . . 1 . . . . . 1 . 1 Extermination 7 | . . . . 1 . 2 1 . . 3 Reinforcement 4 | . . 1 . 1 . 1 . . . 1 Assault . | . . . . . . . . . . . Garrison . | . . . . . . . . . . . Intercept . | . . . . . . . . . . . Searches Triggered . | . . . . . . . . . . . Construction Impeded . | . . . . . . . . . . . Haulers Reinforced . | . . . . . . . . . . . Active Scanning Responses . | . . . . . . . . . . . Cargo Convoy Interrupts . | . . . . . . . . . . . Stealth | -11 -10 -9 -8 -7 -6 -5 -4 -3 -2 -1 --------- Run | Yrd Mat Mat Mat Fac Fac Fac Fac Res Res Acc Distress Signals 6 | . . 4 . 1 . 1 . . . . Communications Jammed . | . . . . . . . . . . . Distress Signals . | . . . . . . . . . . . Times Spotted 91 | . 10 27 3 6 2 16 6 3 . 18 Peak Tracking Total 5 | . 2 4 2 3 1 5 3 3 . 5 Tactical Retreats 14 | . 1 1 . 1 1 2 3 1 . 4 Traps | -11 -10 -9 -8 -7 -6 -5 -4 -3 -2 -1 ------- Run | Yrd Mat Mat Mat Fac Fac Fac Fac Res Res Acc Traps Triggered 9 | . 5 2 . . . . 1 . . 1 Indirectly . | . . . . . . . . . . . Trap Hack Attempts . | . . . . . . . . . . . Triggered . | . . . . . . . . . . . Disarmed . | . . . . . . . . . . . Reprogrammed . | . . . . . . . . . . . Reused . | . . . . . . . . . . . Traps Extracted . | . . . . . . . . . . . Installed . | . . . . . . . . . . . Triggered . | . . . . . . . . . . . Machines | -11 -10 -9 -8 -7 -6 -5 -4 -3 -2 -1 ---------- Run | Yrd Mat Mat Mat Fac Fac Fac Fac Res Res Acc Machines Disabled 7 | . . 2 . 1 . . . . . 4 Max in Single Turn 1 | . . 1 . 1 . . . . . 1 Garrison Access 2 | . . . . 1 . . . . . 1 Energy Cycler 2 | . . . . . . . . . . 2 Machines Repaired . | . . . . . . . . . . . Machines Dismantled 1 | . . . . . . . . . . 1 Machines Sabotaged . | . . . . . . . . . . . Overloaded Fab Kills . | . . . . . . . . . . . Hacking | -11 -10 -9 -8 -7 -6 -5 -4 -3 -2 -1 --------- Run | Yrd Mat Mat Mat Fac Fac Fac Fac Res Res Acc Machines Accessed 44 | . 8 8 3 8 3 2 1 4 . 7 Terminals 38 | . 7 7 3 7 3 1 1 3 . 6 Fabricators . | . . . . . . . . . . . Repair Stations 3 | . 1 1 . . . 1 . . . . Recycling Units . | . . . . . . . . . . . Scanalyzers 1 | . . . . . . . . 1 . . Garrison Access 2 | . . . . 1 . . . . . 1 Total Hacks 132 | . 24 41 7 22 7 7 2 9 . 13 Successful 78 | . 19 23 3 16 4 7 1 2 . 3 Failed 54 | . 5 18 4 6 3 . 1 7 . 10 Catastrophic 6 | . . 2 . 1 1 . . 1 . 1 Database Lockouts . | . . . . . . . . . . . Manual 99 | . 18 34 4 15 6 3 2 7 . 10 Terminals 117 | . 22 37 7 21 7 3 2 7 . 11 Fabricators . | . . . . . . . . . . . Repair Stations 10 | . 2 4 . . . 4 . . . . Recycling Units . | . . . . . . . . . . . Scanalyzers 2 | . . . . . . . . 2 . . Garrison Access 3 | . . . . 1 . . . . . 2 Terminal Hacks 51 | . 11 16 3 15 2 2 . . . 2 Record 3 | . . 3 . . . . . . . . Robot Analysis 14 | . 5 3 . 6 . . . . . . Prototype ID Bank 3 | . 1 . 1 1 . . . . . . Level Access Points 4 | . . . . 1 1 1 . . . 1 Branch Access Points 2 | . . . . 1 . . . . . 1 Garrison Index 1 | . . 1 . . . . . . . . Unreport Threat 5 | . . 3 1 1 . . . . . . Locate Traps 16 | . 3 5 1 5 1 1 . . . . Transport Status 1 | . 1 . . . . . . . . . Zone Layout 2 | . 1 1 . . . . . . . . Fabricator Hacks . | . . . . . . . . . . . Repair Station Hacks 10 | . 2 4 . . . 4 . . . . Scan Component 5 | . 1 2 . . . 2 . . . . Repair 5 | . 1 2 . . . 2 . . . . Recycling Unit Hacks . | . . . . . . . . . . . Scanalyzer 2 | . . . . . . . . 2 . . Retrieve Study 2 | . . . . . . . . 2 . . Garrison Access Hacks 2 | . . . . 1 . . . . . 1 Seal Access 2 | . . . . 1 . . . . . 1 Unauthorized Hacks 13 | . 6 3 . . 2 1 1 . . . Terminals 13 | . 6 3 . . 2 1 1 . . . Botnet 13 | . 6 3 . . 2 1 1 . . . Fabricators . | . . . . . . . . . . . Repair Stations . | . . . . . . . . . . . Recycling Units . | . . . . . . . . . . . Scanalyzers . | . . . . . . . . . . . Garrison Access . | . . . . . . . . . . . Data Cores Recovered 4 | . . . 1 2 1 . . . . . Used 1 | . . . . 1 . . . . . . Hacking Detections 39 | . 7 7 3 5 3 2 1 4 . 7 Full Trace Events 5 | . 1 2 . . . . . 1 . 1 Feedback Events . | . . . . . . . . . . . Feedback Blocked . | . . . . . . . . . . . Robot Schematics Acquired . | . . . . . . . . . . . Robots Built . | . . . . . . . . . . . Authchips . | . . . . . . . . . . . Time . | . . . . . . . . . . . Total Robot Build Rating . | . . . . . . . . . . . Part Schematics Acquired . | . . . . . . . . . . . Parts Built . | . . . . . . . . . . . Authchips . | . . . . . . . . . . . Time . | . . . . . . . . . . . Total Part Build Rating . | . . . . . . . . . . . Part Studies Acquired 2 | . . . . . . . . 2 . . Parts Repaired 5 | . 1 2 . . . 2 . . . . Time 160 | . 38 52 . . . 70 . . . . Parts Recycled . | . . . . . . . . . . . Recycled Matter . | . . . . . . . . . . . Retrieved Matter . | . . . . . . . . . . . Retrieved Components . | . . . . . . . . . . . Parts Scanalyzed . | . . . . . . . . . . . Part Schematics Acquired . | . . . . . . . . . . . Parts Damaged . | . . . . . . . . . . . Bothacking | -11 -10 -9 -8 -7 -6 -5 -4 -3 -2 -1 ------------ Run | Yrd Mat Mat Mat Fac Fac Fac Fac Res Res Acc Used RIF Installer . | . . . . . . . . . . . Robots Hacked . | . . . . . . . . . . . Non-combat . | . . . . . . . . . . . Combat . | . . . . . . . . . . . Robot Hacks Applied . | . . . . . . . . . . . Relay Couplers Released . | . . . . . . . . . . . Fabnet Peak Effective % . | . . . . . . . . . . . Robots Rewired . | . . . . . . . . . . . Allies Hacked . | . . . . . . . . . . . Hacks Repelled . | . . . . . . . . . . . Allies | -11 -10 -9 -8 -7 -6 -5 -4 -3 -2 -1 -------- Run | Yrd Mat Mat Mat Fac Fac Fac Fac Res Res Acc Total Allies . | . . . . . . . . . . . Largest Group . | . . . . . . . . . . . Highest-Rated Group . | . . . . . . . . . . . Highest-Rated Ally . | . . . . . . . . . . . Total Orders . | . . . . . . . . . . . Ally Attacks . | . . . . . . . . . . . Total Damage . | . . . . . . . . . . . Kills . | . . . . . . . . . . . Allies Corrupted . | . . . . . . . . . . . Allies Melted . | . . . . . . . . . . . Intel | -11 -10 -9 -8 -7 -6 -5 -4 -3 -2 -1 ------- Run | Yrd Mat Mat Mat Fac Fac Fac Fac Res Res Acc Active Infowar (turns) 5167 | 215 827 1076 67 439 113 915 426 256 71 762 Optics 2929 | . . . . 386 113 915 426 256 71 762 Sensors 3005 | . . . 53 439 113 895 426 256 71 752 Terrain 5081 | 215 789 1076 67 439 113 877 426 256 71 752 Structural 3059 | . 723 892 67 439 113 825 . . . . Cloaking 723 | . . . . . . . 330 256 4 133 Robot Analysis Total 14 | . 5 3 . 6 . . . . . . Derelict Logs Recovered . | . . . . . . . . . . . Drone Launches . | . . . . . . . . . . . Drone Recoveries . | . . . . . . . . . . . Exploration | -11 -10 -9 -8 -7 -6 -5 -4 -3 -2 -1 ------------- Run | Yrd Mat Mat Mat Fac Fac Fac Fac Res Res Acc Turns Passed 5201 | 249 827 1076 67 439 113 915 426 256 71 762 Spaces Moved 5315 | 158 560 542 172 945 254 609 405 362 64 1244 Core 7 | 6 1 . . . . . . . . . Treads . | . . . . . . . . . . . Legs 1259 | 152 559 542 6 . . . . . . . Wheels . | . . . . . . . . . . . Hover . | . . . . . . . . . . . Flight 4049 | . . . 166 945 254 609 405 362 64 1244 Fastest Speed 19 | 50 120 120 26 24 21 22 22 25 22 19 Average Speed 46 | 117 120 123 29 24 23 22 24 25 22 20 Slowest Speed 250 | 120 250 130 130 26 25 25 25 28 22 23 Overloaded Moves . | . . . . . . . . . . . Propulsion Burnouts . | . . . . . . . . . . . Robots Hopped 14 | . . . 1 8 2 . 1 . . 2 Potential Cave-ins . | . . . . . . . . . . . Cave-ins Triggered . | . . . . . . . . . . . Exploration Rate (%) 29 | 6 96 56 18 35 13 23 15 15 2 42 Regions Visited 10 Branch Regions . Pre-discovered Areas . | . . . . . . . . . . . Known Exits Taken 10 | 1 1 1 1 1 1 1 1 1 1 . Unknown Exits Taken . | . . . . . . . . . . . Scrap Searched . | . . . . . . . . . . . Spaces Dug 68 | . . 11 . 7 3 14 6 5 1 21 Terrain Destroyed 68 | . . 11 . 7 3 14 6 5 1 21 Melee 57 | . . . . 7 3 14 6 5 1 21 Projectile . | . . . . . . . . . . . AOE 11 | . . 11 . . . . . . . . Terrain Rammed . | . . . . . . . . . . . Walls Destroyed . | . . . . . . . . . . . Machines Disabled . | . . . . . . . . . . . Actions | -11 -10 -9 -8 -7 -6 -5 -4 -3 -2 -1 --------- Run | Yrd Mat Mat Mat Fac Fac Fac Fac Res Res Acc Total 7510 | 185 655 768 188 1101 296 1343 713 515 113 1633 Wait 1768 | . 50 83 . 130 31 702 281 139 41 311 Move 5276 | 157 559 541 169 928 249 608 402 361 63 1239 Hop 14 | . . . 1 8 2 . 1 . . 2 Pick Up 31 | 3 8 9 1 3 2 1 2 . . 2 Fast Attach 37 | 7 7 4 . 2 1 6 1 1 1 7 Attach 14 | . . . 8 1 1 2 1 . 1 . Detach 3 | . . . 2 . . . . . 1 . Swap 48 | 2 1 18 . 5 3 2 7 4 2 4 Drop 55 | . 3 19 6 3 3 . 8 3 1 9 Fire 136 | 16 27 93 . . . . . . . . Melee 122 | . . 1 1 21 4 22 10 7 3 53 Ram . | . . . . . . . . . . . Kick . | . . . . . . . . . . . Crush . | . . . . . . . . . . . Escape Stasis . | . . . . . . . . . . . Rewire . | . . . . . . . . . . . Trap . | . . . . . . . . . . . Miscellaneous 6 | . . . . . . . . . . 6 Route ------- -11/Scrapyard -10/Materials (discovered 5 exits: *Mat x3 / *Min x2) -9/Materials -8/Materials -7/Factory (discovered 6 exits: *Fac x4 / *Low x2) -6/Factory (discovered 4 exits: *Fac x4) -5/Factory (discovered 4 exits: *Fac x4) -4/Factory -3/Research -2/Research -1/Access (discovered 2 exits: *Sur / Com) To Epsilon Eridani History --------- Turn | Location | Event 5 | -11/Scrapyard | Identified exit to Materials 5 | -11/Scrapyard | Discovered exit to Materials (range 16) 250 | -11/Scrapyard | Entered Materials 250 | -10/Materials | Evolved 1 slot: Utility x1 308 | -10/Materials | Build established: Hacker-Mutant 435 | -10/Materials | Repaired Imp. Terrain Scanner 475 | -10/Materials | Identified exit to Materials 475 | -10/Materials | Discovered exit to Materials (range 5) 555 | -10/Materials | Identified exit to Mines 555 | -10/Materials | Discovered exit to Mines (range 10) 769 | -10/Materials | Discovered exit to Materials (range 13) 769 | -10/Materials | Discovered exit to Mines (range 11) 882 | -10/Materials | Discovered exit to Materials (range 8) 1077 | -10/Materials | Entered another Materials area 1077 | -9/Materials | Evolved 2 slots: Propulsion x2 1697 | -9/Materials | Repaired Structural Scanner 1724 | -9/Materials | Repaired Aluminum Leg 2099 | -9/Materials | Identified exit to Materials 2099 | -9/Materials | Discovered exit to Materials (range 16) 2153 | -9/Materials | Entered another Materials area 2153 | -8/Materials | Evolved 2 slots: Utility x2 2214 | -8/Materials | Identified exit to Factory 2214 | -8/Materials | Discovered exit to Factory (range 9) 2220 | -8/Materials | Entered Factory 2220 | -7/Factory | Evolved 2 slots: Power x1, Propulsion x1 2456 | -7/Factory | Build established: Hacker-Scout 2532 | -7/Factory | Identified exit to Lower Caves 2628 | -7/Factory | Identified exit to Factory 2659 | -7/Factory | Entered another Factory area 2659 | -6/Factory | Evolved 2 slots: Propulsion x1, Utility x1 2713 | -6/Factory | Identified exit to Factory 2753 | -6/Factory | Spotted B-75 Beast 2772 | -6/Factory | Entered another Factory area 2772 | -5/Factory | Evolved 2 slots: Utility x2 2814 | -5/Factory | Repaired Imp. Terrain Scanner 2848 | -5/Factory | Repaired VTOL Module 3035 | -5/Factory | Identified exit to Factory 3647 | -5/Factory | Lost 4 parts (1p1n2u) 3687 | -5/Factory | Entered another Factory area 3687 | -4/Factory | Evolved 2 slots: Utility x2 3970 | -4/Factory | Build established: Hacker-Ninja 4088 | -4/Factory | Identified exit to Research 4088 | -4/Factory | Discovered exit to Research (range 9) 4113 | -4/Factory | Entered Research 4113 | -3/Research | Evolved 2 slots: Propulsion x2 4351 | -3/Research | Identified exit to Research 4351 | -3/Research | Discovered exit to Research (range 11) 4351 | -3/Research | Spotted B-86 Titan 4369 | -3/Research | Entered another Research area 4369 | -2/Research | Evolved 2 slots: Utility x2 4384 | -2/Research | Identified exit to Access 4384 | -2/Research | Discovered exit to Access (range 20) 4440 | -2/Research | Entered Access 4440 | -1/Access | Evolved 2 slots: Propulsion x2 4601 | -1/Access | Energy Cycler disabled 4755 | -1/Access | Identified exit to Command 4755 | -1/Access | Discovered exit to Command (range 14) 5041 | -1/Access | Identified exit to Surface 5148 | -1/Access | Spotted B-99 Colossus 5151 | -1/Access | Spotted B-99 Colossus 5202 | *** | Escaped! Last Messages --------------- 05087_ K-01 Serf collects debris. 05089_ U-05 Engineer lays Concrete. 05089_ K-01 Serf collects debris. 05090_ U-05 Engineer lays Concrete. 05092_ K-01 Serf collects debris. 05092_ U-05 Engineer lays Concrete. 05093_ K-01 Serf collects debris. 05093_ U-05 Engineer lays Concrete. 05126_ The Access Shell folds into the floor. 05128_ Sealed Heavy Doors breached. 05149_ Slug penetrates Sealed Heavy Doors. 05150_ System corrupted: Matter fused (-8). 05152_ Penetrated by Slug. 05152_ Slug penetrates Sealed Heavy Doors. 05152_ Penetrated by Slug. 05152_ Slug penetrates Sealed Heavy Doors. 05185_ System corrupted: IFF burst signal emitted. 05201_ Slug penetrates Sealed Heavy Doors. 05201_ Impulse Thruster destroyed. 05201_ Slug penetrates Sealed Heavy Doors. Map ----- +----------------------------------------------------+ | ????????????????????# # ####+########### | | ????????????????????# # # ### | | ????????????????????########## # ##? | | ??????????????????????# ?# ### | | ????????????????????### # # ? | | ??????????????????##### ?# ### | | ??????????????? ?##### # ### | | ?????????????#?######## ######## ### | | ???????????#?########## #####?## ### | | ??????????############# ######## ##? | | ?????????########### ##### ### | | ????????#?########## ##### ### | | ????????############ ##### ### | | ?????????#########?# ############"####### | | ??????# ############ #####?##### | | ??????# ??########## ########### ]! | | ??????#?############ ########### !! | | ?????## ############"""" """"########### !! | | ?????## #?##########""""" """"########### [ | | ?????## ############""""" """"########### | | ?????#? ############""""" """"###### ######+### | | ????##? ?########### ###### #?? | | ?????## ?########### ###### ### | | ?????##+#?########## ###### ########?? | | ????? ? ##### "" ###?### ####??###?? | | ????? ? ##### "@ ####### ######??### | | ?????? ? ##### ####### ###?#??###? | | ?????? " ##### ####### ########### | | ?????? "?"? ##### ####### #?? | | ???????""""" ##### ####??# # ? | | ??????? ???"" #### ###??# # !!] | | ????????"""" #####"" ####### #? !!] | | ?????????" #####"" ##?#### # !! | | ?????????? #?###"" ####### # | | ???????? ?? #####T ####### + | | ???????? ??? #?###"" #?##### # | | ??????????#??#?#####"" #?##?## # | | ???????????#########"" ####### # | | ??????# ! # | | ??????# #?? | | ??????# ###################### #######?######## | | ?????????#??#??#####?##?#?##??### #########?#????? | | ???????????????#?#?####????####?# #????#?#???????? | | ???????????? ?? ?? #####?#???#?# ####???#?#?#???# | | ?????????????? ??????#??##?#?#? =?##?#?###? ???? | | ????????????????? ? ??? #?#?#??"" ?????? ????? | | ?????????????? ???? ?? ? ?T ? ? ? ??????? | | ??????????????????? # ???#?##?? ?? ?? ?? ?????? | | ??????????????? ? ??###??#???? #?#?????#?????? | | ?????????????????? ???###??#?#?####?##?#?#???????? | +----------------------------------------------------+ Best States ------------- Heat Dissipation 79 Energy Generation 41 Energy Capacity 575 Matter Stores 300 Matter Capacity 300 Sight Range 20 Robot Scan Range 16 Terrain Scan Range 16 Terrain Scan Density 610 Cloak Strength 4 Resistance: KI 35 Resistance: TH 35 Resistance: EX 35 Resistance: EM 35 Resistance: I 35 Resistance: S 35 Resistance: P 35 Evasion (%) 66 Armor Integrity Analysis 30 Force Boost 20 Offensive Hacking 20 Item Schematics ----------------- None Robot Schematics ------------------ None Fabricated ------------ Nothing Repaired ---------- Imp. Terrain Scanner | 90% | -10/Materials Structural Scanner | 15% | -9/Materials Aluminum Leg | 65% | -9/Materials Imp. Terrain Scanner | 31% | -5/Factory VTOL Module | 44% | -5/Factory Studied --------- Field Propulsion Drive | -3/Research | Hacked Nuclear Pulse Thruster | -3/Research | Hacked Alien Tech Used ----------------- None Achievements -------------- None Challenges ------------ None Game ------ Seed MiningWeldingCalibrator Manual? 0 Play Time 01:09:01 Cumulative 240.6 hours Start 2026.06.26 @ 20:59:26 End 2026.06.26 @ 22:05:46 Sessions 1 Manual Loads 0 Difficulty Explorer Special Mode None Game No. 379 Rogue 216 Adventurer 15 Explorer 148 Win Type 0 Total 27 Types 26/0/0/1/0/0/0/0/0/0 Lore% 65 Gallery% 64 Achievement% 57 Wizard Run 0 Options --------- Layout 0 ASCII 0 Keyboard 1 Movement Numpad Keybinds 0 Fullscreen 2 Font 18/SmallcapsGlow Map View 76x50 Zoom Use 0% Tactical HUD 1 Map Filters NONE Filters NONE Steam 1 RUN: 1e20d54d-ac28-4ccd-ad47-5f0534c414fb